fUST/lending_fUST_20240611
["ID","MTS","AMOUNT","RATE_DAILY","PERIOD"]
[328987919,1718043061737,-809.15,0.00022191,2]
[328987920,1718043061747,-555.44,0.00022191,2]
[328987921,1718043061758,-500.0,0.00022191,2]
[328987922,1718043061769,-3106.63,0.00022191,2]
[328987923,1718043061779,-1322.06,0.00022191,2]
[328987924,1718043061790,-500.0,0.00022191,2]
[328987925,1718043061800,-283.0,0.00022192,2]
[328987926,1718043061814,-319.2,0.00022269,5]
[328987927,1718043061824,-151.0,0.00022269,5]
[328987928,1718043061835,-242.139,0.00022326,2]
[328987929,1718043061845,-150.0,0.00022326,2]
[328987930,1718043061854,-210.159,0.00022326,2]
[328987931,1718043061865,-164.371,0.00022326,2]
[328987932,1718043061875,-153.507,0.00022326,2]
[328987933,1718043061886,-174.48,0.00022326,2]
[328987934,1718043061897,-304.887732,0.00022326,2]
[328987935,1718043061907,-304.887732,0.00022326,2]
[328987936,1718043061917,-310.58742665,0.00022329,2]
[328987937,1718043061927,-1272.23,0.00022329,2]
[328987938,1718043061936,-15503.55750861,0.0002233,3]
[328987939,1718043061958,-1152.9933705,0.0002233,3]
[328987940,1718043061971,-43500.0,0.0002233,3]
[328987941,1718043062074,-155.00620025,0.00019177,2]
[328987942,1718043062084,-3120.09651569,0.00019177,4]
[328987943,1718043062094,-164.63552504,0.00019177,2]
[328987944,1718043062105,-500.0,0.00019178,2]
[328987945,1718043062115,-500.0,0.00019178,2]
[328987946,1718043062125,-5623.44912089,0.0002233,3]
[328987947,1718043062136,-151.0,0.0002233,2]
[328987948,1718043062146,-151.0,0.0002233,2]
[328987949,1718043062156,-151.0,0.0002233,2]
[328987950,1718043062166,-262.914996,0.0002233,2]
[328987951,1718043062176,-206.369979,0.0002233,2]
[328987952,1718043062186,-206.369979,0.0002233,2]
[328987953,1718043062196,-151.0,0.0002233,2]
[328987954,1718043062207,-151.0,0.0002233,2]
[328987955,1718043062218,-192.512744,0.0002233,2]
[328987956,1718043062228,-192.512744,0.0002233,2]
[328987957,1718043062238,-250.677,0.00022345,2]
[328987958,1718043062247,-499.0,0.00022345,2]
[328987959,1718043062257,-150.0,0.00022345,2]
[328987960,1718043062267,-166.666666,0.00022431,2]
[328987961,1718043062276,-1272.23,0.00022464,2]
[328987962,1718043062285,-590.69,0.00022465,2]
[328987963,1718043062295,-500.0,0.00022465,2]
[328987964,1718043062306,-500.0,0.00022465,2]
[328987965,1718043062316,-644.01,0.00022465,2]
[328987966,1718043062326,-500.0,0.00022465,2]
[328987967,1718043062335,-500.0,0.00022465,2]
[328987968,1718043062345,-151.0,0.00022465,2]
[328987969,1718043062355,-590.84,0.00022465,2]
[328987970,1718043062365,-500.0,0.00022465,2]
[328987971,1718043062375,-757.38,0.00022465,2]
[328987972,1718043062384,-500.0,0.00022465,2]
[328987973,1718043062395,-732.29,0.00022465,2]
[328987974,1718043062405,-608.33,0.00022465,2]
[328987975,1718043062416,-720.52,0.00022465,2]
[328987976,1718043062426,-2279.25,0.00022465,2]
[328987977,1718043062436,-500.0,0.00022465,2]
[328987978,1718043062446,-151.0,0.00022465,2]
[328987979,1718043062456,-1339.18,0.00022465,2]
[328987980,1718043062471,-5884.81,0.00022465,2]
[328987981,1718043062481,-1045.86,0.00022465,2]
[328987982,1718043062492,-151.0,0.00022465,2]
[328987983,1718043062503,-1375.25,0.00022465,2]
[328987984,1718043062513,-151.0,0.00022465,2]
[328987985,1718043062523,-709.89,0.00022465,2]
[328987986,1718043062533,-500.0,0.00022465,2]
[328987987,1718043062545,-2312.91,0.00022465,2]
[328987988,1718043062557,-665.55,0.00022465,2]
[328987989,1718043062568,-500.0,0.00022465,2]
[328987990,1718043062578,-1274.17,0.00022465,2]
[328987991,1718043062588,-1002.08,0.00022465,2]
[328987992,1718043062599,-500.0,0.00022465,2]
[328987993,1718043062608,-809.15,0.00022465,2]
[328987994,1718043062618,-555.44,0.00022465,2]
[328987995,1718043062629,-500.0,0.00022465,2]
[328987996,1718043062639,-3106.63,0.00022465,2]
[328987997,1718043062650,-1322.06,0.00022465,2]
[328987998,1718043062660,-500.0,0.00022465,2]
[328987999,1718043062670,-153.0,0.00022653,2]
[328988000,1718043062679,-1272.23,0.00022738,2]
[328988001,1718043062690,-1272.23,0.00022738,2]
[328988002,1718043062700,-1272.23,0.00022738,2]
[328988003,1718043062710,-1272.23,0.00022738,2]
[328988004,1718043062720,-1272.2657587,0.00022738,2]
[328988005,1718043062729,-590.69,0.00022739,2]
[328988006,1718043062739,-500.0,0.00022739,2]
[328988007,1718043062749,-500.0,0.00022739,2]
[328988008,1718043062760,-644.01,0.00022739,2]
[328988009,1718043062770,-500.0,0.00022739,2]
[328988010,1718043062782,-500.0,0.00022739,2]
[328988011,1718043062791,-590.84,0.00022739,2]
[328988012,1718043062801,-500.0,0.00022739,2]
[328988013,1718043062810,-757.38,0.00022739,2]
[328988014,1718043062820,-500.0,0.00022739,2]
[328988015,1718043062830,-732.29,0.00022739,2]
[328988016,1718043062840,-608.33,0.00022739,2]
[328988017,1718043062850,-720.52,0.00022739,2]
[328988018,1718043062860,-2279.25,0.00022739,2]
[328988019,1718043062870,-500.0,0.00022739,2]
[328988020,1718043062880,-1339.18,0.00022739,2]
[328988021,1718043062890,-5075.59277143,0.00022739,2]
[328988022,1718043062903,-809.21722857,0.00022739,2]
[328988023,1718043062912,-1045.86,0.00022739,2]
[328988024,1718043062924,-1375.25,0.00022739,2]
[328988025,1718043062935,-709.89,0.00022739,2]
[328988026,1718043062947,-500.0,0.00022739,2]
[328988027,1718043062957,-2312.91,0.00022739,2]
[328988028,1718043062967,-360.63311134,0.00022739,2]
[328988029,1718043062979,-304.91688866,0.00022739,2]
[328988030,1718043062989,-500.0,0.00022739,2]
[328988031,1718043063000,-1274.17,0.00022739,2]
[328988032,1718043063010,-1002.08,0.00022739,2]
[328988033,1718043063020,-613.62901411,0.00022739,2]
[328988034,1718043063030,-809.15,0.00022739,2]
[328988035,1718043063039,-555.44,0.00022739,2]
[328988036,1718043063049,-500.0,0.00022739,2]
[328988037,1718043063063,-304.887732,0.00022739,2]
[328988038,1718043063072,-304.887732,0.00022739,2]
[328988039,1718043063082,-911.58318523,0.00022739,2]
[328988040,1718043063093,-2195.04681477,0.00022739,2]
[328988041,1718043063102,-900.47711654,0.00022739,2]
[328988042,1718043147659,759.55453663,9.999e-05,2]
[328988043,1718043351015,155.01550155,9.999e-05,2]
[328988044,1718043369026,229.5215098,9.999e-05,2]
[328988045,1718043415476,2094.82592376,9.999e-05,2]
[328988046,1718043417359,300.20628111,9.999e-05,2]
[328988047,1718043435334,299.26238284,9.999e-05,2]
[328988048,1718043437402,2094.82592376,9.999e-05,2]
[328988049,1718043459391,2086.7942988,9.999e-05,2]
[328988051,1718043703919,155.01395126,9.999e-05,2]
[328988052,1718043987432,174.27706723,9.999e-05,2]
[328988053,1718043991850,155.71392078,9.999e-05,2]
[328988121,1718044233977,-155.01085076,0.00017756,2]
[328988123,1718044233988,-3120.09651569,0.00017757,4]
[328988125,1718044233998,-300.0,0.00017757,2]
[328988127,1718044234008,-7537.2263861,0.00017758,2]
[328988129,1718044234019,-235.4,0.0001867,3]
[328988131,1718044234029,-338.24667993,0.000189,2]
[328988133,1718044234040,-767.85577405,0.00018984,2]
[328988135,1718044234051,-1000.0,0.00019,9]
[328988137,1718044234062,-282.66579838,0.00019076,2]
[328988139,1718044234072,-161.09306543,0.00019076,2]
[328988141,1718044234082,-774.36341557,0.00019076,2]
[328988143,1718044234092,-187.33268178,0.00019076,2]
[328988145,1718044234103,-1690.48986013,0.00019076,2]
[328988147,1718044234113,-155.08333146,0.00019076,2]
[328988149,1718044234124,-1155.63089272,0.00019076,2]
[328988151,1718044234134,-524.2716986,0.00019076,2]
[328988153,1718044234144,-1444.57547444,0.00019076,2]
[328988155,1718044234154,-2682.36568579,0.00019076,2]
[328988157,1718044234165,-204.81434597,0.00019077,2]
[328988159,1718044234175,-11098.45664958,0.00019077,2]
[328988161,1718044234185,-10506.24693023,0.00019078,2]
[328988163,1718044234195,-2000.0,0.00019078,2]
[328988165,1718044234205,-2113.8300801,0.00019157,2]
[328988167,1718044234215,-401.08,0.00019168,3]
[328988169,1718044234225,-786.67175703,0.00019174,2]
[328988171,1718044234238,-51.29872149,0.00019174,2]
[328988173,1718044234248,-948.3381729,0.00019175,2]
[328988285,1718044240345,-183.57544719,0.00019078,2]
[328988286,1718044240356,-18362.02009706,0.00019175,2]
[328988287,1718044240366,-161.28904267,0.00019176,2]
[328988288,1718044240379,-216.14213589,0.00019176,2]
[328988289,1718044240389,-200.0,0.00019176,2]
[328988290,1718044240399,-164.65656838,0.00019177,2]
[328988291,1718044240409,-1673.96605746,0.00019177,2]
[328988292,1718044240420,-1887.16457558,0.00019178,15]
[328988293,1718044240430,-500.0,0.00019178,2]
[328988294,1718044240440,-500.0,0.00019178,2]
[328988295,1718044240451,-500.0,0.00019178,2]
[328988296,1718044240461,-504.50096196,0.00019178,2]
[328988297,1718044240472,-500.0,0.00019178,2]
[328988298,1718044240483,-500.0,0.00019178,2]
[328988299,1718044240493,-500.0,0.00019178,2]
[328988300,1718044240503,-158.87465208,0.00019178,2]
[328988301,1718044240515,-344.41393069,0.00019178,2]
[328988302,1718044240526,-521.63327352,0.00019178,2]
[328988303,1718044240536,-502.59675767,0.00019178,2]
[328988304,1718044240547,-501.42221471,0.00019178,2]
[328988305,1718044240557,-500.0,0.00019178,2]
[328988306,1718044240568,-339.63743128,0.00019178,2]
[328988307,1718044240578,-505.88076613,0.00019178,2]
[328988308,1718044240588,-500.0,0.00019178,2]
[328988309,1718044240598,-200.48471714,0.00019178,2]
[328988310,1718044240609,-500.0,0.00019178,2]
[328988311,1718044240619,-500.0,0.00019178,2]
[328988312,1718044240629,-544.12207473,0.00019178,2]
[328988313,1718044240639,-500.0,0.00019178,2]
[328988314,1718044240649,-500.0,0.00019178,2]
[328988315,1718044240659,-500.0,0.00019178,2]
[328988316,1718044240670,-428.49829647,0.00019178,2]
[328988317,1718044240680,-500.0,0.00019178,2]
[328988318,1718044240691,-500.0,0.00019178,2]
[328988319,1718044240701,-500.0,0.00019178,2]
[328988320,1718044240712,-500.0,0.00019178,2]
[328988321,1718044240722,-501.97791594,0.00019178,2]
[328988322,1718044240732,-532.46247509,0.00019178,2]
[328988323,1718044240743,-500.0,0.00019178,2]
[328988324,1718044240754,-405.91911901,0.00019178,2]
[328988325,1718044240764,-500.0,0.00019178,2]
[328988326,1718044240774,-648.62392539,0.00019178,2]
[328988327,1718044240785,-500.0,0.00019178,2]
[328988328,1718044240795,-500.0,0.00019178,2]
[328988330,1718044240809,-52.76721272,0.00019178,2]
[328988331,1718044240844,-447.23278728,0.00019178,2]
[328988332,1718044240855,-500.0,0.00019178,2]
[328988333,1718044240869,-500.0,0.00019178,2]
[328988334,1718044240879,-500.0,0.00019178,2]
[328988335,1718044240889,-500.0,0.00019178,2]
[328988336,1718044240899,-518.35640038,0.00019178,2]
[328988337,1718044240910,-500.0,0.00019178,2]
[328988338,1718044240920,-500.0,0.00019178,2]
[328988339,1718044240930,-502.39300777,0.00019178,2]
[328988340,1718044240940,-500.0,0.00019178,2]
[328988341,1718044240952,-500.0,0.00019178,2]
[328988342,1718044240962,-500.0,0.00019178,2]
[328988343,1718044240972,-500.0,0.00019178,2]
[328988344,1718044240982,-502.71720836,0.00019178,2]
[328988345,1718044240992,-500.0,0.00019178,2]
[328988346,1718044241002,-500.0,0.00019178,2]
[328988347,1718044241012,-500.0,0.00019178,2]
[328988348,1718044241022,-500.0,0.00019178,2]
[328988349,1718044241033,-518.76558569,0.00019178,2]
[328988350,1718044241042,-500.0,0.00019178,2]
[328988351,1718044241054,-502.43498286,0.00019178,2]
[328988352,1718044241064,-504.74715776,0.00019178,2]
[328988353,1718044241074,-500.0,0.00019178,2]
[328988354,1718044241084,-500.0,0.00019178,2]
[328988355,1718044241093,-500.0,0.00019178,2]
[328988356,1718044241103,-526.83267157,0.00019178,2]
[328988357,1718044241113,-500.0,0.00019178,2]
[328988358,1718044241123,-502.89918318,0.00019178,2]
[328988359,1718044241133,-500.0,0.00019178,2]
[328988360,1718044241143,-500.0,0.00019178,2]
[328988361,1718044241153,-500.0,0.00019178,2]
[328988362,1718044241163,-500.0,0.00019178,2]
[328988363,1718044241173,-500.0,0.00019178,2]
[328988364,1718044241183,-505.41905001,0.00019178,2]
[328988365,1718044241193,-506.18381644,0.00019178,2]
[328988366,1718044241202,-500.0,0.00019178,2]
[328988367,1718044241212,-500.0,0.00019178,2]
[328988368,1718044241221,-503.82921661,0.00019178,2]
[328988369,1718044241231,-500.0,0.00019178,2]
[328988370,1718044241241,-506.72449764,0.00019178,2]
[328988371,1718044241251,-500.0,0.00019178,2]
[328988372,1718044241261,-502.43136395,0.00019178,2]
[328988373,1718044241270,-500.0,0.00019178,2]
[328988374,1718044241279,-500.0,0.00019178,2]
[328988375,1718044241288,-500.0,0.00019178,2]
[328988376,1718044241298,-505.24985065,0.00019178,2]
[328988377,1718044241309,-500.0,0.00019178,2]
[328988378,1718044241319,-500.0,0.00019178,2]
[328988379,1718044241329,-508.11249346,0.00019178,2]
[328988380,1718044241338,-500.0,0.00019178,2]
[328988381,1718044241348,-500.0,0.00019178,2]
[328988382,1718044241358,-500.0,0.00019178,2]
[328988383,1718044241368,-500.0,0.00019178,2]
[328988384,1718044241379,-500.0,0.00019178,2]
[328988385,1718044241389,-269.16252365,0.00019178,2]
[328988386,1718044241400,-500.0,0.00019178,2]
[328988387,1718044241410,-500.0,0.00019178,2]
[328988388,1718044241423,-500.0,0.00019178,2]
[328988389,1718044241433,-500.0,0.00019178,2]
[328988390,1718044241443,-500.0,0.00019178,2]
[328988391,1718044241452,-500.0,0.00019178,2]
[328988392,1718044241462,-500.0,0.00019178,2]
[328988393,1718044241471,-500.0,0.00019178,2]
[328988394,1718044241482,-500.0,0.00019178,2]
[328988395,1718044241492,-500.0,0.00019178,2]
[328988396,1718044241502,-500.0,0.00019178,2]
[328988397,1718044241512,-175.23843947,0.00019178,2]
[328988398,1718044241523,-500.0,0.00019178,2]
[328988399,1718044241533,-500.0,0.00019178,2]
[328988400,1718044241543,-500.0,0.00019178,2]
[328988401,1718044241554,-500.0,0.00019178,2]
[328988402,1718044241565,-500.0,0.00019178,2]
[328988403,1718044241576,-500.0,0.00019178,2]
[328988404,1718044241586,-519.02,0.00019178,2]
[328988405,1718044241596,-500.0,0.00019178,2]
[328988406,1718044241607,-500.0,0.00019178,2]
[328988407,1718044241617,-500.0,0.00019178,2]
[328988408,1718044241627,-500.0,0.00019178,2]
[328988409,1718044241637,-209.10772103,0.00019178,2]
[328988410,1718044241647,-500.0,0.00019178,2]
[328988411,1718044241657,-500.0,0.00019178,2]
[328988412,1718044241667,-500.0,0.00019178,2]
[328988413,1718044241677,-500.0,0.00019178,2]
[328988414,1718044241687,-500.0,0.00019178,2]
[328988415,1718044241697,-500.0,0.00019178,2]
[328988416,1718044241707,-500.0,0.00019178,2]
[328988417,1718044241717,-500.0,0.00019178,2]
[328988418,1718044241727,-500.0,0.00019178,2]
[328988419,1718044241737,-500.0,0.00019178,2]
[328988420,1718044241747,-500.0,0.00019178,2]
[328988421,1718044241757,-500.0,0.00019178,2]
[328988422,1718044241768,-500.0,0.00019178,2]
[328988423,1718044241778,-519.43748525,0.00019178,2]
[328988424,1718044241788,-500.0,0.00019178,2]
[328988425,1718044241800,-500.0,0.00019178,2]
[328988426,1718044241810,-500.0,0.00019178,2]
[328988427,1718044241820,-500.0,0.00019178,2]
[328988428,1718044241830,-500.0,0.00019178,2]
[328988429,1718044241840,-500.0,0.00019178,2]
[328988430,1718044241850,-500.0,0.00019178,2]
[328988431,1718044241862,-500.0,0.00019178,2]
[328988432,1718044241873,-500.0,0.00019178,2]
[328988433,1718044241882,-500.0,0.00019178,2]
[328988434,1718044241892,-500.0,0.00019178,2]
[328988435,1718044241903,-500.0,0.00019178,2]
[328988436,1718044241913,-500.0,0.00019178,2]
[328988437,1718044241923,-500.0,0.00019178,2]
[328988438,1718044241933,-500.0,0.00019178,2]
[328988439,1718044241946,-500.0,0.00019178,2]
[328988440,1718044241956,-500.0,0.00019178,2]
[328988441,1718044241968,-500.0,0.00019178,2]
[328988442,1718044241979,-500.0,0.00019178,2]
[328988443,1718044241989,-500.0,0.00019178,2]
[328988444,1718044242000,-506.13938526,0.00019178,2]
[328988446,1718044242010,-500.0,0.00019178,2]
[328988447,1718044242020,-605.69,0.00019178,2]
[328988448,1718044242030,-500.0,0.00019178,2]
[328988449,1718044242041,-500.0,0.00019178,2]
[328988450,1718044242053,-500.0,0.00019178,2]
[328988451,1718044242063,-500.0,0.00019178,2]
[328988452,1718044242074,-500.0,0.00019178,2]
[328988453,1718044242084,-500.0,0.00019178,2]
[328988454,1718044242095,-500.0,0.00019178,2]
[328988455,1718044242107,-500.0,0.00019178,2]
[328988456,1718044242118,-500.0,0.00019178,2]
[328988457,1718044242129,-500.0,0.00019178,2]
[328988458,1718044242138,-500.0,0.00019178,2]
[328988459,1718044242148,-505.65497877,0.00019178,2]
[328988460,1718044242159,-500.0,0.00019178,2]
[328988461,1718044242169,-500.0,0.00019178,2]
[328988462,1718044242179,-500.0,0.00019178,2]
[328988467,1718044242315,-630.95824231,0.00019178,2]
[328988468,1718044242326,-500.0,0.00019178,2]
[328988469,1718044242336,-500.0,0.00019178,2]
[328988470,1718044242347,-500.0,0.00019178,2]
[328988471,1718044242358,-500.0,0.00019178,2]
[328988472,1718044242368,-500.0,0.00019178,2]
[328988473,1718044242381,-500.0,0.00019178,2]
[328988474,1718044242392,-500.0,0.00019178,2]
[328988475,1718044242402,-500.0,0.00019178,2]
[328988476,1718044242412,-164.61889871,0.00019178,2]
[328988477,1718044242423,-500.0,0.00019178,2]
[328988478,1718044242434,-506.76649597,0.00019178,2]
[328988479,1718044242444,-500.0,0.00019178,2]
[328988480,1718044242455,-598.22900202,0.00019178,2]
[328988481,1718044242465,-500.0,0.00019178,2]
[328988482,1718044242476,-500.0,0.00019178,2]
[328988483,1718044242486,-507.62421664,0.00019178,2]
[328988484,1718044242496,-500.0,0.00019178,2]
[328988485,1718044242507,-500.0,0.00019178,2]
[328988486,1718044242518,-500.0,0.00019178,2]
[328988488,1718044242528,-500.0,0.00019178,2]
[328988490,1718044242539,-470.64774371,0.00019178,2]
[328988491,1718044242550,-500.0,0.00019178,2]
[328988492,1718044242563,-500.0,0.00019178,2]
[328988493,1718044242573,-500.0,0.00019178,2]
[328988494,1718044242584,-500.0,0.00019178,2]
[328988495,1718044242595,-500.0,0.00019178,2]
[328988496,1718044242606,-500.0,0.00019178,2]
[328988497,1718044242616,-500.0,0.00019178,2]
[328988498,1718044242626,-500.0,0.00019178,2]
[328988499,1718044242637,-366.82423376,0.00019178,2]
[328988500,1718044242648,-500.0,0.00019178,2]
[328988501,1718044242658,-500.0,0.00019178,2]
[328988502,1718044242668,-500.0,0.00019178,2]
[328988503,1718044242678,-500.0,0.00019178,2]
[328988504,1718044242688,-509.24401375,0.00019178,2]
[328988505,1718044242698,-500.0,0.00019178,2]
[328988506,1718044242708,-542.24062365,0.00019178,2]
[328988507,1718044242717,-500.0,0.00019178,2]
[328988508,1718044242728,-527.35014866,0.00019178,2]
[328988509,1718044242738,-500.0,0.00019178,2]
[328988510,1718044242748,-500.0,0.00019178,2]
[328988511,1718044242758,-500.0,0.00019178,2]
[328988512,1718044242768,-500.0,0.00019178,2]
[328988513,1718044242778,-500.0,0.00019178,2]
[328988514,1718044242788,-500.0,0.00019178,2]
[328988515,1718044242799,-500.0,0.00019178,2]
[328988516,1718044242814,-500.0,0.00019178,2]
[328988517,1718044242824,-500.0,0.00019178,2]
[328988518,1718044242834,-500.0,0.00019178,2]
[328988519,1718044242843,-586.92023192,0.00019178,2]
[328988520,1718044242852,-500.0,0.00019178,2]
[328988521,1718044242866,-500.0,0.00019178,2]
[328988522,1718044242876,-272.23,0.00019178,2]
[328988523,1718044242886,-500.0,0.00019178,2]
[328988524,1718044242896,-502.77626701,0.00019178,2]
[328988525,1718044242907,-500.0,0.00019178,2]
[328988526,1718044242917,-500.0,0.00019178,2]
[328988527,1718044242927,-527.19053864,0.00019178,2]
[328988528,1718044242940,-611.18,0.00019178,2]
[328988529,1718044242951,-500.0,0.00019178,2]
[328988530,1718044242962,-500.0,0.00019178,2]
[328988531,1718044242972,-500.0,0.00019178,2]
[328988532,1718044242983,-500.0,0.00019178,2]
[328988533,1718044242993,-500.0,0.00019178,2]
[328988534,1718044243003,-1000.0,0.00019178,2]
[328988535,1718044243013,-500.0,0.00019178,2]
[328988536,1718044243023,-500.0,0.00019178,2]
[328988537,1718044243033,-506.04076421,0.00019178,2]
[328988538,1718044243043,-500.0,0.00019178,2]
[328988539,1718044243054,-500.0,0.00019178,2]
[328988540,1718044243065,-500.0,0.00019178,2]
[328988541,1718044243075,-345.94796893,0.00019178,2]
[328988542,1718044243085,-500.0,0.00019178,2]
[328988543,1718044243095,-500.0,0.00019178,2]
[328988544,1718044243106,-500.0,0.00019178,2]
[328988545,1718044243116,-500.0,0.00019178,2]
[328988546,1718044243126,-500.0,0.00019178,2]
[328988547,1718044243138,-261.11642441,0.00019178,2]
[328988548,1718044243148,-500.0,0.00019178,2]
[328988549,1718044243159,-500.0,0.00019178,2]
[328988550,1718044243170,-317.42040987,0.00019178,2]
[328988551,1718044243180,-508.51572346,0.00019178,2]
[328988552,1718044243191,-507.95238793,0.00019178,2]
[328988553,1718044243202,-509.69066738,0.00019178,2]
[328988554,1718044243212,-722.97,0.00019178,2]
[328988555,1718044243222,-500.0,0.00019178,2]
[328988556,1718044243233,-234.68044641,0.00019178,2]
[328988557,1718044243243,-500.0,0.00019178,2]
[328988558,1718044243254,-500.0,0.00019178,2]
[328988559,1718044243265,-500.0,0.00019178,2]
[328988560,1718044243275,-500.0,0.00019178,2]
[328988561,1718044243285,-500.0,0.00019178,2]
[328988562,1718044243295,-500.0,0.00019178,2]
[328988563,1718044243308,-644.2018588,0.00019178,2]
[328988564,1718044243318,-257.55586363,0.00019178,2]
[328988565,1718044243327,-500.0,0.00019178,2]
[328988566,1718044243337,-351.84133973,0.00019178,2]
[328988567,1718044243347,-500.0,0.00019178,2]
[328988568,1718044243357,-207.4209969,0.00019178,2]
[328988569,1718044243368,-200.92013662,0.00019178,2]
[328988570,1718044243378,-500.0,0.00019178,2]
[328988571,1718044243388,-500.0,0.00019178,2]
[328988572,1718044243399,-500.0,0.00019178,2]
[328988573,1718044243408,-500.0,0.00019178,2]
[328988574,1718044243418,-397.45093608,0.00019178,2]
[328988575,1718044243428,-541.19849864,0.00019178,2]
[328988576,1718044243438,-500.0,0.00019178,2]
[328988577,1718044243448,-500.0,0.00019178,2]
[328988578,1718044243458,-500.0,0.00019178,2]
[328988579,1718044243467,-283.7169246,0.00019178,2]
[328988580,1718044243477,-500.0,0.00019178,2]
[328988581,1718044243487,-500.0,0.00019178,2]
[328988582,1718044243496,-500.0,0.00019178,2]
[328988583,1718044243506,-500.0,0.00019178,2]
[328988584,1718044243515,-500.0,0.00019178,2]
[328988585,1718044243525,-500.0,0.00019178,2]
[328988586,1718044243534,-500.0,0.00019178,2]
[328988587,1718044243547,-500.0,0.00019178,2]
[328988588,1718044243559,-580.98315633,0.00019178,2]
[328988589,1718044243568,-500.0,0.00019178,2]
[328988590,1718044243577,-500.0,0.00019178,2]
[328988591,1718044243587,-500.0,0.00019178,2]
[328988592,1718044243597,-500.0,0.00019178,2]
[328988593,1718044243607,-500.0,0.00019178,2]
[328988594,1718044243618,-500.0,0.00019178,2]
[328988595,1718044243627,-500.0,0.00019178,2]
[328988596,1718044243637,-500.0,0.00019178,2]
[328988597,1718044243647,-309.48491801,0.00019178,2]
[328988598,1718044243657,-526.47485098,0.00019178,2]
[328988599,1718044243667,-500.0,0.00019178,2]
[328988600,1718044243676,-500.0,0.00019178,2]
[328988601,1718044243686,-500.0,0.00019178,2]
[328988602,1718044243696,-504.86013238,0.00019178,2]
[328988603,1718044243705,-500.0,0.00019178,2]
[328988604,1718044243715,-500.0,0.00019178,2]
[328988605,1718044243725,-500.0,0.00019178,2]
[328988606,1718044243736,-315.05862401,0.00019178,2]
[328988607,1718044243746,-500.0,0.00019178,2]
[328988608,1718044243756,-500.0,0.00019178,2]
[328988609,1718044243766,-500.0,0.00019178,2]
[328988610,1718044243777,-500.0,0.00019178,2]
[328988611,1718044243787,-500.0,0.00019178,2]
[328988612,1718044243797,-500.0,0.00019178,2]
[328988613,1718044243809,-500.0,0.00019178,2]
[328988614,1718044243818,-500.0,0.00019178,2]
[328988615,1718044243828,-408.68,0.00019178,2]
[328988616,1718044243838,-500.0,0.00019178,2]
[328988617,1718044243849,-525.34364497,0.00019178,2]
[328988618,1718044243862,-500.0,0.00019178,2]
[328988619,1718044243873,-500.0,0.00019178,2]
[328988620,1718044243883,-500.0,0.00019178,2]
[328988621,1718044243893,-500.0,0.00019178,2]
[328988622,1718044243903,-500.0,0.00019178,2]
[328988623,1718044243915,-511.01430458,0.00019178,2]
[328988624,1718044243925,-500.0,0.00019178,2]
[328988625,1718044243936,-500.0,0.00019178,2]
[328988626,1718044243946,-502.65957187,0.00019178,2]
[328988627,1718044243957,-337.60368615,0.00019178,2]
[328988630,1718044243967,-507.03455054,0.00019178,2]
[328988633,1718044243978,-500.0,0.00019178,2]
[328988635,1718044243988,-351.46104683,0.00019178,2]
[328988637,1718044243998,-500.0,0.00019178,2]